fUSD/lending_fUSD_20240217
["ID","MTS","AMOUNT","RATE_DAILY","PERIOD"]
[314315322,1708175477191,-500.0,0.00056438,120]
[314315323,1708175477200,-500.0,0.00056438,120]
[314315324,1708175477209,-500.0,0.00056438,120]
[314315325,1708175477218,-152.49287195,0.00056438,120]
[314315326,1708175477227,-500.0,0.00056438,120]
[314315327,1708175477236,-500.0,0.00056438,120]
[314315328,1708175477245,-500.0,0.00056438,120]
[314315329,1708175477254,-500.0,0.00056438,120]
[314315330,1708175477263,-500.0,0.00056438,120]
[314315331,1708175477272,-500.0,0.00056438,120]
[314315332,1708175477281,-500.0,0.00056438,120]
[314315333,1708175477290,-586.80439683,0.00056438,120]
[314315334,1708175477299,-500.0,0.00056438,7]
[314315335,1708175477308,-390.57033283,0.00056438,120]
[314315336,1708175477317,-500.0,0.00056438,120]
[314315337,1708175477326,-514.03,0.00056438,120]
[314315338,1708175477335,-500.0,0.00056438,120]
[314315339,1708175477344,-500.0,0.00056438,120]
[314315340,1708175477353,-500.0,0.00056438,120]
[314315341,1708175477362,-732.85,0.00056438,120]
[314315342,1708175477370,-500.0,0.00056438,120]
[314315343,1708175477379,-886.32,0.00056438,120]
[314315344,1708175477388,-500.0,0.00056438,120]
[314315345,1708175477398,-500.0,0.00056438,120]
[314315346,1708175477407,-500.0,0.00056438,120]
[314315347,1708175477416,-3486.11,0.00056438,120]
[314315348,1708175477425,-500.0,0.00056438,120]
[314315349,1708175477434,-1958.95,0.00056438,120]
[314315350,1708175477549,-2037.46,0.00056438,120]
[314315351,1708175477559,-1200.37,0.00056438,120]
[314315352,1708175477568,-500.0,0.00056438,120]
[314315353,1708175477577,-500.0,0.00056438,120]
[314315354,1708175477586,-542.67036706,0.00056438,120]
[314315355,1708175477596,-500.0,0.00056438,120]
[314315356,1708175477605,-500.0,0.00056438,120]
[314315357,1708175477615,-260.98208798,0.00056438,120]
[314315358,1708175477625,-500.0,0.00056438,120]
[314315359,1708175477634,-3728.14,0.00056438,120]
[314315360,1708175477644,-500.0,0.00056438,120]
[314315361,1708175477653,-500.0,0.00056438,120]
[314315362,1708175477662,-500.0,0.00056438,120]
[314315363,1708175477671,-500.0,0.00056438,120]
[314315364,1708175477680,-500.0,0.00056438,120]
[314315365,1708175477690,-500.0,0.00056438,120]
[314315366,1708175477700,-500.0,0.00056438,120]
[314315367,1708175477709,-500.0,0.00056438,120]
[314315368,1708175477718,-500.0,0.00056438,120]
[314315369,1708175477727,-500.0,0.00056438,14]
[314315370,1708175477736,-500.0,0.00056438,120]
[314315371,1708175477746,-522.36,0.00056438,120]
[314315372,1708175477755,-500.0,0.00056438,120]
[314315373,1708175477764,-500.0,0.00056438,120]
[314315374,1708175477773,-500.0,0.00056438,120]
[314315375,1708175477783,-500.0,0.00056438,120]
[314315376,1708175477792,-500.0,0.00056438,120]
[314315377,1708175477802,-793.44,0.00056438,120]
[314315378,1708175477811,-500.0,0.00056438,120]
[314315379,1708175477820,-500.0,0.00056438,120]
[314315380,1708175477829,-500.0,0.00056438,120]
[314315381,1708175477839,-558.74,0.00056438,120]
[314315382,1708175477848,-500.0,0.00056438,120]
[314315383,1708175477858,-695.69,0.00056438,120]
[314315384,1708175477867,-500.0,0.00056438,120]
[314315385,1708175477876,-500.0,0.00056438,120]
[314315386,1708175477885,-500.0,0.00056438,120]
[314315387,1708175477894,-500.0,0.00056438,120]
[314315388,1708175477903,-6005.01,0.00056438,120]
[314315389,1708175477913,-500.0,0.00056438,120]
[314315390,1708175477922,-711.04,0.00056438,120]
[314315391,1708175477931,-678.09,0.00056438,120]
[314315392,1708175477942,-500.0,0.00056438,120]
[314315393,1708175477953,-500.0,0.00056438,120]
[314315394,1708175477963,-1190.59,0.00056438,120]
[314315395,1708175477974,-500.0,0.00056438,120]
[314315396,1708175477983,-1367.23,0.00056438,120]
[314315397,1708175477992,-500.0,0.00056438,120]
[314315398,1708175478001,-300.0,0.00056438,120]
[314315399,1708175478010,-155.96416772,0.00056438,120]
[314315400,1708175478020,-500.0,0.00056438,120]
[314315401,1708175478029,-500.0,0.00056438,120]
[314315402,1708175478038,-351.35396927,0.00056438,120]
[314315403,1708175478047,-500.0,0.00056438,120]
[314315404,1708175478057,-500.0,0.00056438,120]
[314315405,1708175478067,-500.0,0.00056438,120]
[314315406,1708175478076,-16050.07,0.00056438,120]
[314315407,1708175478085,-611.77321654,0.00056438,120]
[314315408,1708175478094,-500.0,0.00056438,120]
[314315409,1708175478104,-390.50584987,0.00056438,120]
[314315410,1708175478114,-500.0,0.00056438,120]
[314315411,1708175478123,-500.0,0.00056438,120]
[314315412,1708175478133,-563.89,0.00056438,120]
[314315413,1708175478144,-586.89,0.00056438,120]
[314315414,1708175478153,-738.08,0.00056438,120]
[314315415,1708175478163,-4018.72,0.00056438,120]
[314315416,1708175478172,-289.25224024,0.00056438,120]
[314315417,1708175478182,-500.0,0.00056438,120]
[314315418,1708175478192,-500.0,0.00056438,120]
[314315419,1708175478201,-4387.48,0.00056438,120]
[314315420,1708175478210,-500.0,0.00056438,120]
[314315421,1708175478219,-500.0,0.00056438,120]
[314315422,1708175478229,-500.0,0.00056438,120]
[314315423,1708175478238,-500.0,0.00056438,120]
[314315424,1708175478246,-633.73003296,0.00056438,120]
[314315425,1708175478255,-730.98677674,0.00056438,60]
[314315426,1708175478264,-223.021788,0.00056448,108]
[314315427,1708175478274,-500.0,0.00056485,120]
[314315428,1708175478282,-492.37308739,0.00056495,30]
[314315429,1708175478291,-491.4433972,0.000565,60]
[314315430,1708175478301,-858.5154042,0.000565,60]
[314315431,1708175478310,-1522.84614698,0.000565,60]
[314315432,1708175478319,-280.07904922,0.000565,60]
[314315433,1708175478327,-2446.15319639,0.000565,60]
[314315434,1708175478336,-208.56618133,0.000565,120]
[314315435,1708175478345,-1406.38231821,0.000565,60]
[314315436,1708175478355,-800.0,0.00056547,120]
[314315437,1708175478364,-370.0,0.00056557,30]
[314315438,1708175478373,-610.57385,0.00056595,2]
[314315439,1708175478382,-200.0,0.000566,36]
[314315440,1708175478391,-5742.56047,0.000566,107]
[314315441,1708175478400,-1741.688955,0.000566,35]
[314315442,1708175478409,-1905.309032,0.000566,43]
[314315443,1708175478418,-306.656239,0.000566,16]
[314315444,1708175478427,-1238.0621262,0.000566,34]
[314315445,1708175478436,-151.0,0.000566,120]
[314315446,1708175478446,-500.0,0.00056602,120]
[314315447,1708175478455,-160.0,0.00056603,120]
[314315448,1708175478464,-151.0,0.00056615,120]
[314315449,1708175478473,-218.7115,0.00056615,120]
[314315450,1708175478482,-218.7115,0.00056615,120]
[314315451,1708175478491,-151.0,0.00056615,120]
[314315452,1708175478499,-151.0,0.00056615,120]
[314315453,1708175478509,-557.495151,0.00056615,14]
[314315454,1708175478519,-74277.647406,0.00056615,2]
[314315455,1708175478528,-72813.4572326,0.00056615,2]
[314315456,1708175478537,-557.495145,0.00056615,14]
[314315457,1708175478546,-2848.0710269,0.00056615,2]
[314315458,1708175478555,-2791.9287317,0.00056615,2]
[314315459,1708175478565,-71349.2670591,0.00056651,2]
[314315460,1708175478575,-2735.7864364,0.00056651,2]
[314315461,1708175478585,-12977.35156314,0.00056654,2]
[314315462,1708175478788,-2686.4749475,0.00056654,2]
[314315463,1708175478797,-1350292.74766377,0.00056654,120]
[314315464,1708175478809,-260462.69840913,0.00056654,120]
[314315465,1708175479102,-25327.6,0.00027397,2]
[314315466,1708175479111,-25327.6,0.00027556,2]
[314315467,1708175479120,-25327.6,0.00027714,2]
[314315468,1708175479129,-25327.6,0.00027872,2]
[314315469,1708175479138,-25327.6,0.0002803,2]
[314315470,1708175479147,-25327.6,0.00028189,2]
[314315471,1708175479156,-25327.6,0.00028347,2]
[314315472,1708175479166,-25327.6,0.00028505,2]
[314315473,1708175479175,-25327.6,0.00028664,2]
[314315474,1708175479185,-25327.6,0.00028822,2]
[314315475,1708175479195,-151.59,0.00038356,2]
[314315476,1708175479204,-1714.04103236,0.00042196,11]
[314315477,1708175479214,-2252.68375417,0.000468,4]
[314315478,1708175479223,-677.00693077,0.00047889,7]
[314315479,1708175479233,-151.59,0.00047945,2]
[314315480,1708175479242,-1500.0,0.00048,7]
[314315481,1708175479250,-1500.0,0.00048162,7]
[314315482,1708175479259,-150.0,0.00048902,7]
[314315483,1708175479269,-1500.0,0.00049125,7]
[314315484,1708175479277,-1500.0,0.00049286,7]
[314315485,1708175479287,-437.39616331,0.00054794,120]
[314315486,1708175479296,-500.0,0.00055616,120]
[314315487,1708175479305,-500.0,0.0005589,120]
[314315488,1708175479314,-500.0,0.00056164,120]
[314315489,1708175479323,-500.0,0.00056438,120]
[314315490,1708175479332,-167101.64423666,0.00056654,120]
[314315491,1708175479370,-0.11448434,0.00056654,120]
[314315492,1708175479385,-28667.5648938,0.00056654,120]
[314315493,1708175479397,-24269.83744866,0.00056654,120]
[314315494,1708175479408,-11955.20439353,0.00056654,120]
[314315495,1708175479419,-1321.86465,0.00056654,120]
[314315496,1708175479430,-13833.184442,0.00056654,120]
[314315497,1708175479636,-150.0,0.00048436,7]
[314315498,1708175479645,-150.0,0.00048498,7]
[314315499,1708175479655,-150.0,0.00048539,7]
[314315500,1708175479664,-150.0,0.00048602,7]
[314315501,1708175479673,-150.0,0.00048612,7]
[314315502,1708175479682,-150.0,0.00048782,7]
[314315503,1708175479692,-150.0,0.00048804,7]
[314315504,1708175479702,-150.0,0.00048805,7]
[314315505,1708175479712,-150.0,0.00048808,7]
[314315506,1708175479721,-150.0,0.00048815,7]
[314315507,1708175479730,-150.0,0.00048854,7]
[314315508,1708175479739,-150.0,0.00048902,7]
[314315509,1708175479749,-150.0,0.0004898,7]
[314315510,1708175479758,-78.52878983,0.00048985,7]
[314315511,1708175479778,-71.47121017,0.00048985,7]
[314315512,1708175479787,-150.0,0.00048992,7]
[314315513,1708175479795,-150.0,0.00048996,7]
[314315514,1708175479804,-150.0,0.00049057,7]
[314315515,1708175479813,-150.0,0.00049099,7]
[314315516,1708175479822,-150.0,0.00049099,7]
[314315517,1708175479831,-150.0,0.0004911,7]
[314315518,1708175479840,-150.0,0.00049132,7]
[314315519,1708175479849,-150.0,0.00049139,7]
[314315520,1708175479858,-150.0,0.00049148,7]
[314315521,1708175479867,-150.0,0.00049184,7]
[314315522,1708175479876,-150.0,0.00049206,7]
[314315523,1708175479886,-150.0,0.00049229,7]
[314315524,1708175479895,-150.0,0.00049244,7]
[314315525,1708175479904,-150.0,0.00049247,7]
[314315526,1708175479913,-150.0,0.00049256,7]
[314315527,1708175479921,-150.0,0.00049266,7]
[314315528,1708175479930,-150.0,0.00049267,7]
[314315529,1708175479939,-150.0,0.000493,7]
[314315530,1708175479952,-11.92878984,0.00049368,7]
[314315531,1708175480021,-150.0,0.00048845,7]
[314315532,1708175480029,-150.0,0.00048915,7]
[314315533,1708175480147,-150.0,0.00049153,7]
[314315534,1708175480157,-150.0,0.00049239,7]
[314315535,1708175480166,-150.0,0.00049364,7]
[314315536,1708175480187,-138.07121016,0.00049368,7]
[314315537,1708175480200,-159700.27673057,0.00056654,120]
[314315538,1708175480271,-150.0,0.000485,7]
[314315539,1708175480281,-150.0,0.00049218,7]
[314315540,1708175480292,-150.0,0.00049356,7]
[314315541,1708175480301,-5529.90075499,0.00056654,120]
[314315542,1708175480314,-30204.97578296,0.00056654,120]
[314315543,1708175642147,-2500.0,0.000229,2]
[314315544,1708175642170,-36944.7804,0.000229,2]
[314315545,1708175642191,-701.3611,0.000229,2]
[314315546,1708175642214,-317.49571846,0.00027555,2]
[314315547,1708175642236,-499.99,0.00028664,2]
[314315548,1708175642258,-1817.93660883,0.0003,4]
[314315549,1708175642280,-1177.58646698,0.0003,4]
[314315550,1708175832143,550.0,0.00025,3]
[314315551,1708175833269,600.0,0.00027,3]
[314315552,1708175834379,650.0,0.00029,3]
[314315553,1708175877706,201.535,0.0003,2]
[314315566,1708176631491,-155.0,0.00030899,2]
[314315567,1708176631500,-164.80278114,0.000309,2]
[314315568,1708176631510,-700.0,0.00031,3]
[314315569,1708176631519,-164.80278114,0.000369,2]
[314315570,1708176631698,-208.0,0.00037,2]
[314315571,1708176631707,-601.32052498,0.00037199,4]
[314315572,1708176631720,-1766.82280398,0.00037199,4]
[314315573,1708176631732,-4178.13793965,0.00037199,4]
[314315574,1708176631742,-1984.59096667,0.000372,2]
[314315575,1708176631759,-136.40903333,0.000372,2]
[314315576,1708176631770,-155.0,0.000377,4]
[314315577,1708176631779,-822.97735197,0.00037701,3]
[314315578,1708176631788,-150.0,0.000399,2]
[314315579,1708176631797,-274.1193,0.00040926,2]
[314315580,1708176631806,-333.0,0.00041025,2]
[314315581,1708176631815,-89.21211231,0.00041025,5]
[314315582,1708176631827,-1229.33503551,0.00041025,5]
[314315583,1708176631839,-2983.90038546,0.00041025,5]
[314315584,1708176631850,-1703.85428632,0.00041025,5]
[314315585,1708176631862,-1216.96656715,0.00041025,5]
[314315586,1708176631871,-156.94607223,0.000417,2]
[314315587,1708176631880,-499.99,0.000417,2]
[314315589,1708176631890,-156.96,0.000418,4]
[314315590,1708176631899,-391.06524383,0.00042,7]
[314315592,1708176631909,-555.0,0.00042025,2]
[314315594,1708176631918,-3158.51142533,0.000425,2]
[314315595,1708176631927,-1032.42,0.000425,2]
[314315597,1708176631937,-303.46556432,0.00042635,2]
[314315598,1708176631946,-2990.25504834,0.00042635,2]
[314315601,1708176631959,-380.305,0.00042635,2]
[314315603,1708176631971,-1112.77210475,0.00042635,2]
[314315605,1708176631980,-1526.32753771,0.00042679,13]
[314315607,1708176631991,-327.09999999,0.00042679,13]
[314315609,1708176632003,-5146.8417,0.00042679,13]
[314315612,1708176632017,-6246.34155456,0.00042679,13]
[314315614,1708176632026,-1444.93692313,0.00042707,14]
[314315615,1708176632039,-10304.12,0.00042707,14]
[314315616,1708176632051,-334.84098344,0.00042707,14]
[314315617,1708176632062,-650.99351737,0.00042707,14]
[314315618,1708176632073,-1713.03735611,0.00042707,14]
[314315619,1708176632085,-3125.75820977,0.00042707,14]
[314315620,1708176632100,-265.0000001,0.00042707,14]
[314315622,1708176640128,-2629.58178193,0.00042707,14]
[314315624,1708176640140,-2700.0,0.00042707,14]
[314315630,1708176640940,-4501.60064706,0.00042707,14]
[314315631,1708176640951,-6336.95369363,0.00042735,14]
[314315632,1708176640962,-1179.0787418,0.00042735,14]
[314315633,1708176641147,-4214.641458,0.00042735,14]
[314315634,1708176641158,-935.00023214,0.00042735,14]
[314315635,1708176641168,-152.0,0.00043093,3]
[314315636,1708176641177,-269.0,0.00043158,2]
[314315637,1708176641186,-333.0,0.000433,2]
[314315638,1708176641195,-250.0,0.00044503,111]
[314315639,1708176641203,-390.65139184,0.00044521,2]
[314315640,1708176641219,-1188.73860816,0.00044521,2]
[314315641,1708176641228,-365.5,0.00044521,2]
[314315642,1708176641237,-2000.0,0.00044578,120]
[314315643,1708176641247,-200.0,0.00044655,120]
[314315644,1708176641256,-208.0,0.00044667,21]
[314315646,1708176641266,-921.0924476,0.0004471,2]
[314315647,1708176641281,-343.2675524,0.0004471,2]
[314315648,1708176641291,-73.98046996,0.00044753,2]
[314315649,1708176641303,-77.60953004,0.00044753,2]
[314315650,1708176641312,-371.51495049,0.00044755,2]
[314315655,1708176641416,-128.48504951,0.00044755,2]
[314315656,1708176641425,-213.29,0.00044761,2]
[314315657,1708176641434,-150.0,0.00044844,2]
[314315658,1708176641443,-1000.0,0.0004495,2]
[314315659,1708176641453,-253.37,0.00044955,2]
[314315660,1708176641462,-500.0,0.00044974,120]
[314315661,1708176641471,-404.92800675,0.00045,4]
[314315662,1708176641480,-750.0,0.00045005,2]
[314315663,1708176641490,-250.0,0.00045055,2]
[314315664,1708176641499,-152.39,0.00045097,2]
[314315665,1708176641509,-304.92,0.00045197,2]
[314315666,1708176641518,-939.61,0.00045235,120]
[314315667,1708176641528,-31936.96,0.00045272,2]
[314315668,1708176641537,-1049.79,0.00045272,2]
[314315669,1708176641546,-156.96,0.000454,5]
[314315670,1708176641555,-269.0,0.00045421,2]
[314315671,1708176641564,-1049.79,0.00045534,2]
[314315672,1708176641573,-23900.0,0.00045576,2]
[314315673,1708176641582,-224.77,0.00045601,15]
[314315674,1708176641591,-152.39,0.00045685,2]
[314315675,1708176641601,-303.4655643,0.00045768,2]
[314315676,1708176641610,-4483.33215307,0.00045768,2]
[314315677,1708176641619,-1049.79,0.00045795,2]
[314315678,1708176641628,-6724.9981,0.000459,2]
[314315679,1708176641637,-1231.55192243,0.00046,30]
[314315680,1708176641647,-1049.79,0.00046057,2]
[314315681,1708176641656,-365.5,0.00046169,2]
[314315682,1708176641666,-152.39,0.00046272,2]
[314315683,1708176641675,-300.0,0.0004629,2]
[314315684,1708176641685,-1049.79,0.00046318,2]
[314315685,1708176641695,-165.87,0.00046364,2]
[314315686,1708176641704,-1778.96802061,0.000465,8]
[314315687,1708176641713,-1049.79,0.0004658,2]
[314315688,1708176641723,-7976.489,0.000466,2]
[314315689,1708176641732,-2451.421,0.000466,2]
[314315690,1708176641741,-1407.0,0.000467,115]
[314315691,1708176641750,-304.92,0.00046841,2]
[314315692,1708176641760,-1049.79,0.00046842,2]
[314315693,1708176641770,-152.39,0.0004686,2]
[314315694,1708176641780,-156.78,0.0004696,2]
[314315695,1708176641789,-1049.79,0.00047103,2]
[314315696,1708176641798,-1049.79,0.00047365,2]
[314315697,1708176641807,-152.39,0.00047447,2]
[314315698,1708176641816,-1778.96802052,0.00047621,9]
[314315699,1708176641825,-1049.79,0.00047626,2]
[314315700,1708176641834,-300.0,0.00047659,2]
[314315701,1708176641854,-269.0,0.00047685,2]
[314315702,1708176641864,-365.5,0.00047816,2]
[314315703,1708176641873,-250.0,0.00048306,120]
[314315704,1708176641882,-151.0,0.00048421,2]
[314315705,1708176641891,-304.92,0.00048485,2]
[314315706,1708176641901,-2104.55,0.00048512,120]
[314315707,1708176641910,-152.0,0.00048524,4]
[314315708,1708176641919,-170.29,0.00048586,2]
[314315709,1708176641929,-877.1669,0.00048843,2]
[314315710,1708176641939,-303.4655643,0.000489,2]
[314315711,1708176641948,-4483.33215307,0.000489,2]
[314315712,1708176641957,-13095.1479,0.000489,7]
[314315713,1708176641969,-153.57097039,0.0004896,14]
[314315714,1708176641979,-6371.54070606,0.0004899,13]
[314315715,1708176641989,-431.36195186,0.00049,10]
[314315716,1708176641999,-200000.0,0.00049,120]
[314315717,1708176642009,-156.96,0.00049,6]
[314315718,1708176642018,-500.0,0.0004906,90]
[314315719,1708176642028,-224.77,0.00049337,120]
[314315720,1708176642037,-326.31271344,0.0004939,21]
[314315721,1708176642047,-522.41110501,0.0004939,5]
[314315722,1708176642057,-365.5,0.00049463,2]
[314315723,1708176642066,-15928.8517651,0.0004948,13]
[314315724,1708176642075,-162.60781055,0.0004948,2]
[314315725,1708176642085,-164920.067443,0.0004949,11]
[314315726,1708176642094,-158.37755031,0.00049497,2]
[314315727,1708176642104,-430000.0,0.000495,120]
[314315728,1708176642113,-180.0,0.00049759,2]
[314315729,1708176642123,-7152.7448,0.00049773,2]
[314315730,1708176642132,-1547.7,0.00049829,117]
[314315731,1708176642141,-167.0,0.00049866,2]
[314315732,1708176642150,-269.0,0.00049949,2]
[314315733,1708176642160,-20912.28231763,0.0005,20]
[314315734,1708176642169,-2101.4921501,0.0005,17]
[314315735,1708176642178,-2000.0,0.000501,2]
[314315736,1708176642188,-304.92,0.00050129,2]
[314315737,1708176642198,-165.87,0.00050191,2]
[314315738,1708176642207,-5451.19680211,0.000502,120]
[314315739,1708176642216,-5451.19680196,0.000502,120]
[314315740,1708176642226,-5451.19680196,0.000502,120]
[314315741,1708176642235,-5451.19680196,0.000502,120]
[314315742,1708176642244,-5451.19680196,0.000502,120]
[314315743,1708176642253,-5451.19680196,0.000502,120]
[314315744,1708176642263,-5451.19680196,0.000502,120]
[314315745,1708176642277,-5451.19680196,0.000502,120]
[314315746,1708176642289,-5451.19680196,0.000502,120]
[314315747,1708176642299,-5451.19680196,0.000502,120]
[314315748,1708176642308,-200.0,0.00050389,120]
[314315749,1708176642318,-5451.19680196,0.00050555,120]
[314315751,1708176642328,-1000.0,0.00050569,120]
[314315752,1708176642337,-522.41110501,0.00050716,14]
[314315754,1708176642348,-153.57097039,0.00050859,14]
[314315756,1708176642359,-200.0,0.00050987,79]
[314315758,1708176642368,-200.0,0.00050987,78]
[314315759,1708176642377,-1242.0,0.00051,30]
[314315760,1708176642387,-5451.19680196,0.00051015,120]
[314315761,1708176642397,-365.5,0.0005111,2]
[314315763,1708176642407,-1134.0,0.00051324,2]
[314315766,1708176642416,-5451.19680196,0.00051475,120]
[314315769,1708176642426,-167.0,0.00051512,2]
[314315771,1708176642435,-4075.45,0.00051571,2]
[314315772,1708176642444,-304.92,0.00051773,2]
[314315773,1708176642453,-5451.19680196,0.00051935,120]
[314315774,1708176642462,-200.0,0.00051987,81]
[314315775,1708176642471,-200.0,0.00051987,80]
[314315776,1708176642480,-160.0,0.00052,120]
[314315778,1708176642489,-160.0,0.00052,120]
[314315780,1708176642498,-2085.3512736,0.00052,120]
[314315781,1708176642508,-19590.7525711,0.00052,120]
[314315782,1708176642517,-522.41110501,0.00052042,14]
[314315783,1708176642528,-269.0,0.00052213,2]
[314315784,1708176642537,-208.0,0.00052333,40]
[314315785,1708176642546,-5451.19680196,0.00052395,120]
[314315786,1708176642555,-953.0,0.00052422,120]
[314315787,1708176642567,-243.345,0.00052422,120]
[314315788,1708176642577,-216.0,0.00052422,120]
[314315789,1708176642586,-1949.0,0.00052422,120]
[314315790,1708176642595,-1255.0,0.00052422,120]
[314315791,1708176642604,-229.572,0.00052422,120]
[314315792,1708176642613,-926.07,0.0005245,2]
[314315793,1708176642622,-737.0,0.000525,30]
[314315794,1708176642631,-854.47081473,0.0005257,4]
[314315795,1708176642640,-401.93596532,0.0005257,3]
[314315796,1708176642649,-499.67839674,0.0005257,4]
[314315797,1708176642658,-800.0,0.00052583,30]
[314315798,1708176642668,-200.0,0.00052583,30]
[314315799,1708176642677,-200.0,0.00052583,30]
[314315800,1708176642687,-156.96,0.000526,7]
[314315801,1708176642696,-1246.87989977,0.00052604,4]
[314315802,1708176642707,-190.63986032,0.00052611,2]
[314315803,1708176642717,-725.88484146,0.00052669,2]
[314315804,1708176642727,-521.91470066,0.00052674,6]
[314315805,1708176642737,-160.0,0.00052712,120]
[314315806,1708176642746,-153.57097039,0.00052757,14]
[314315807,1708176642756,-5451.19680196,0.00052855,120]
[314315808,1708176642765,-2000.0,0.000529,2]
[314315809,1708176642776,-160.0,0.00052932,120]
[314315810,1708176642786,-3376.79,0.00052957,117]
[314315811,1708176642795,-200.0,0.00052987,84]
[314315812,1708176642804,-200.0,0.00052987,83]
[314315813,1708176642814,-2266.46284349,0.00053,30]
[314315814,1708176642823,-5738.1018968,0.00053021,120]
[314315815,1708176642833,-224.77,0.00053073,120]
[314315816,1708176642845,-1451.76968292,0.00053091,3]
[314315817,1708176642855,-500.0,0.0005314,120]
[314315818,1708176642864,-167.0,0.00053158,2]
[314315819,1708176642874,-522.41110501,0.00053368,14]
[314315820,1708176642884,-304.92,0.00053417,2]
[314315821,1708176642893,-160.0,0.00053425,120]
[314315822,1708176642903,-82460.0337215,0.00053691,12]
[314315823,1708176642913,-213.29,0.00053714,2]
[314315824,1708176642923,-782.41,0.0005377,60]
[314315825,1708176642933,-151.0,0.00053801,2]
[314315826,1708176642943,-160.0,0.00053863,120]
[314315827,1708176642953,-152.0,0.00053956,5]
[314315828,1708176642962,-200.0,0.00053987,87]
[314315829,1708176642972,-200.0,0.00053987,86]
[314315830,1708176642982,-200.0,0.00053987,85]
[314315831,1708176642992,-100000.0,0.00054,44]
[314315832,1708176643002,-10000.0,0.00054,120]
[314315833,1708176643012,-165.87,0.00054017,2]
[314315834,1708176643021,-160.0,0.00054137,120]
[314315835,1708176643031,-269.0,0.00054477,2]
[314315836,1708176643041,-153.0,0.000545,10]
[314315837,1708176643050,-153.57097039,0.00054656,14]
[314315838,1708176643059,-27565.26344714,0.00054683,13]
[314315839,1708176643076,-54894.77027436,0.00054683,13]
[314315840,1708176643085,-118641.7245,0.00054693,2]
[314315841,1708176643095,-5000.0,0.00054694,7]
[314315842,1708176643104,-522.41110501,0.00054694,30]
[314315843,1708176643114,-156.15075557,0.00054694,2]
[314315844,1708176643123,-401.03441029,0.00054694,53]
[314315845,1708176643133,-225.30506265,0.00054694,120]
[314315846,1708176643142,-8521.45,0.000547,46]
[314315847,1708176643151,-302.0,0.00054705,4]
[314315848,1708176643160,-878.43053415,0.00054772,30]
[314315849,1708176643171,-70919.4217671,0.00054784,13]
[314315850,1708176643187,-656.36656359,0.00054784,13]
[314315851,1708176643297,-114314.24631463,0.00054784,13]
[314315853,1708176643309,-2573.79081467,0.00054784,13]
[314315856,1708176643320,-1236.23276817,0.00054784,13]
[314315860,1708176643333,-1545.65765253,0.00054784,13]
[314315861,1708176643344,-984.50326879,0.00054784,13]
[314315862,1708176643357,-2103.3787534,0.00054784,13]
[314315863,1708176643373,-1270.41460312,0.00054784,13]
[314315864,1708176643440,-1096.6831118,0.00054784,13]
[314315865,1708176643452,-296.95776435,0.00054784,13]
[314315866,1708176643463,-1060.31500001,0.00054784,13]
[314315867,1708176643474,-566.62860673,0.00054784,13]
[314315868,1708176643486,-5442.17734887,0.00054784,13]
[314315869,1708176643497,-738.65411607,0.00054784,13]
[314315870,1708176643520,-327.26596321,0.00054784,13]
[314315871,1708176643533,-2693.39454428,0.00054784,13]
[314315872,1708176643545,-122014.04592468,0.00054784,13]
[314315873,1708176643555,-6631.1626505,0.00054794,31]
[314315874,1708176643565,-480.83081811,0.00054794,31]
[314315875,1708176643577,-403.96999975,0.00054794,31]
[314315876,1708176643589,-7219.98613779,0.00054794,31]